bitfinex/quotes_SOLUSD_20251214
["timestamp","ask_amount","ask_price","bid_price","bid_amount"]
[1765729201920,0.69,131.06,131.04,15.36001543]
[1765729202110,0.69,131.06,131.05,3.78883514]
[1765729202316,0.69,131.06,131.05,7.63067531]
[1765729202486,0.1,131.08,131.05,7.63067531]
[1765729202487,0.71,131.07,131.05,11.41951045]
[1765729202782,0.81,131.08,131.06,6.8433195]
[1765729202983,0.81,131.08,131.07,3.78883514]
[1765729204208,0.81,131.08,131.07,11.41834608]
[1765729204610,0.1,131.08,131.07,11.41834608]
[1765729205686,0.1,131.08,131.07,19.77834608]
[1765729207304,0.1,131.08,131.07,20.72266922]
[1765729208412,0.1,131.08,131.07,29.53261414]
[1765729208991,0.1,131.08,131.07,42.57970534]
[1765729209198,0.71,131.14,131.12,7.62660158]
[1765729209502,7.62405295,131.17,131.13,3.78883514]
[1765729209710,0.71,131.15,131.14,3.78883514]
[1765729209887,0.71,131.18,131.14,13.09315828]
[1765729210089,0.71,131.17,131.16,3.78883514]
[1765729210291,0.71,131.17,131.14,8.36]
[1765729210514,0.71,131.17,131.14,12.14883514]
[1765729211288,0.71,131.17,131.14,8.36]
[1765729211614,8.33377427,131.17,131.14,2.41849505]
[1765729212114,0.71,131.16,131.13,8.36]
[1765729213390,8.33482096,131.16,131.12,2.41849505]
[1765729213596,10.75331601,131.16,131.12,2.41849505]
[1765729213797,0.71,131.15,131.12,10.70504724]
[1765729214600,0.71,131.15,131.11,52.21654165]
[1765729214795,0.71,131.15,131.12,2.41849505]
[1765729215122,0.71,131.15,131.11,55.2950367]
[1765729215422,0.71,131.15,131.12,10.7049113]
[1765729215614,0.71,131.15,131.12,10.70568995]
[1765729215926,0.71,131.17,131.14,2.4192737]
[1765729216126,0.71,131.17,131.15,2.4192737]
[1765729216523,104.91,131.19,131.16,2.4192737]
[1765729216728,184.26994492,131.22,131.16,2.4192737]
[1765729216729,0.1,131.22,131.16,0.94432314]
[1765729216892,0.81,131.22,131.2,2.4192737]
[1765729217096,0.1,131.22,131.2,2.4192737]
[1765729217297,0.1,131.22,131.2,3.0792737]
[1765729217791,0.1,131.22,131.2,10.04091886]
[1765729218126,0.1,131.22,131.21,2.4192737]
[1765729218329,0.1,131.22,131.21,16.41068804]
[1765729218517,0.1,131.22,131.21,25.22063296]
[1765729218708,0.1,131.22,131.21,43.62155182]
[1765729218902,8.36,131.31,131.22,9.09426806]
[1765729219104,2.4192737,131.29,131.25,0.28432314]
[1765729219318,2.4192737,131.29,131.23,8.36]
[1765729219319,3.1292737,131.3,131.23,10.7792737]
[1765729219531,2.4192737,131.28,131.23,8.36]
[1765729219706,10.03712165,131.28,131.23,10.7792737]
[1765729219911,0.71,131.27,131.23,8.36]
[1765729220230,0.71,131.27,131.23,9.02]
[1765729220527,0.71,131.27,131.24,2.4192737]
[1765729220705,0.71,131.27,131.24,0.94432314]
[1765729220905,10.03625206,131.29,131.25,2.4192737]
[1765729221118,0.71,131.28,131.25,0.66]
[1765729221427,7.61620767,131.3,131.27,2.4192737]
[1765729221629,0.71,131.3,131.27,2.4192737]
[1765729221829,7.6158347,131.31,131.28,2.4192737]
[1765729222030,0.71,131.29,131.26,2.4192737]
[1765729222232,0.71,131.29,131.26,8.36]
[1765729222436,3.1292737,131.29,131.26,8.36]
[1765729222803,0.71,131.28,131.26,8.36]
[1765729223935,8.3278133,131.28,131.26,8.36]
[1765729224308,7.61683535,131.29,131.26,8.36]
[1765729224524,0.71,131.28,131.26,8.36]
[1765729225242,2.4192737,131.27,131.22,2.4192737]
[1765729225409,0.71,131.28,131.22,10.7592737]
[1765729225599,3.1292737,131.27,131.23,2.4192737]
[1765729226004,8.32846716,131.26,131.23,2.4192737]
[1765729226413,0.68,131.25,131.23,2.4192737]
[1765729226610,0.68,131.27,131.24,2.4192737]
[1765729226831,0.68,131.29,131.26,2.4192737]
[1765729227028,0.68,131.29,131.27,2.4192737]
[1765729227428,0.68,131.29,131.25,17.36]
[1765729227630,0.68,131.29,131.27,2.4192737]
[1765729227834,7.61628181,131.3,131.27,2.4192737]
[1765729228033,0.68,131.3,131.27,2.4192737]
[1765729228237,0.68,131.3,131.26,7.61815792]
[1765729228444,0.68,131.3,131.27,2.4192737]
[1765729228608,0.68,131.3,131.26,0.68]
[1765729228814,0.68,131.3,131.26,2.70359684]
[1765729229232,3.0992737,131.3,131.25,19.7792737]
[1765729229544,0.68,131.3,131.25,8.34]
[1765729229723,3.0992737,131.29,131.25,8.34]
[1765729229921,7.61730652,131.28,131.25,11.4392737]
[1765729230147,0.68,131.28,131.25,19.05814228]
[1765729230344,0.68,131.29,131.26,3.0992737]
[1765729230524,38.34006395,131.32,131.27,2.4192737]
[1765729230525,0.68,131.3,131.27,2.4192737]
[1765729230907,0.68,131.3,131.25,8.34]
[1765729231154,0.68,131.3,131.26,21.45818924]
[1765729231323,0.68,131.3,131.26,2.4192737]
[1765729231525,3.0992737,131.3,131.25,11.4392737]
[1765729232020,8.29672633,131.29,131.25,11.4392737]
[1765729232413,0.68,131.28,131.25,11.4392737]
[1765729233448,8.2975287,131.28,131.25,11.4392737]
[1765729233954,0.68,131.29,131.26,3.0992737]
[1765729235257,0.68,131.29,131.26,0.68]
[1765729235258,8.29677158,131.29,131.26,0.68]
[1765729235457,7.61556621,131.31,131.27,2.4192737]
[1765729235666,0.68,131.31,131.28,2.4192737]
[1765729236021,0.68,131.31,131.28,3.0992737]
[1765729236256,0.68,131.31,131.29,2.4192737]
[1765729236459,0.68,131.31,131.28,2.4192737]
[1765729237153,0.68,131.31,131.28,3.0992737]
[1765729237354,21.45608377,131.33,131.3,2.4192737]
[1765729237355,7.61463717,131.33,131.3,2.4192737]
[1765729237529,0.68,131.32,131.28,15.95702943]
[1765729237725,0.68,131.32,131.28,10.7592737]
[1765729237930,0.68,131.32,131.28,8.34]
[1765729239350,7.61556621,131.31,131.28,8.34]
[1765729240151,0.68,131.3,131.28,8.34]
[1765729241248,7.61556621,131.31,131.28,8.34]
[1765729241457,8.29556621,131.31,131.28,8.34]
[1765729241967,0.68,131.3,131.28,8.34]
[1765729242744,0.68,131.3,131.26,11.4392737]
[1765729243052,29.07375545,131.31,131.27,0.68]
[1765729243053,29.75375545,131.31,131.27,0.68]
[1765729243650,0.68,131.3,131.27,0.68]
[1765729245632,8.29632361,131.3,131.27,0.68]
[1765729247537,26.65042259,131.33,131.26,18.37763386]
[1765729247874,2.4192737,131.3,131.26,8.34]
[1765729248253,3.0992737,131.29,131.24,10.71870757]
[1765729248455,0.68,131.29,131.24,8.34]
[1765729248680,0.68,131.28,131.25,0.68]
[1765729248978,0.68,131.29,131.25,8.2985607]
[1765729249183,0.68,131.28,131.25,10.7178344]
[1765729249556,0.68,131.28,131.25,8.2985607]
[1765729250279,8.29743862,131.28,131.25,8.2985607]
[1765729250480,8.29743862,131.28,131.25,0.68]
[1765729250681,8.29743862,131.28,131.25,8.29901337]
[1765729250890,0.68,131.28,131.25,8.29901337]
[1765729251482,8.29637974,131.3,131.26,0.68]
[1765729251676,8.29637974,131.3,131.26,8.2982928]
[1765729252010,0.68,131.29,131.26,8.2982928]
[1765729252358,0.68,131.29,131.26,10.71304127]
[1765729253382,2.41474847,131.28,131.24,8.34]
[1765729253556,2.41474847,131.27,131.23,0.68]
[1765729254086,3.09474847,131.26,131.22,9.02]
[1765729254256,0.68,131.25,131.22,9.02]
[1765729254586,0.68,131.25,131.22,8.34]
[1765729255190,8.29948479,131.25,131.22,9.02]
[1765729255354,8.29948479,131.25,131.22,8.34]
[1765729255689,8.29948479,131.25,131.22,9.02]
[1765729257592,7.61948479,131.25,131.22,11.43474847]
[1765729257771,8.28948479,131.25,131.22,11.43474847]
[1765729257966,0.67,131.25,131.22,19.05521431]
[1765729258188,46.42363165,131.29,131.22,19.05521431]
[1765729258189,0.67,131.28,131.23,3.11474847]
[1765729258571,0.67,131.28,131.24,3.11474847]
[1765729258788,0.67,131.28,131.24,2.41474847]
[1765729259092,0.67,131.28,131.23,3.11474847]
[1765729259392,8.28730652,131.28,131.23,3.11474847]
[1765729259570,10.70205499,131.28,131.23,10.73490078]
[1765729259766,0.67,131.27,131.24,0.7]
[1765729259990,0.67,131.27,131.23,8.32015231]
[1765729260195,0.67,131.27,131.23,10.73490078]
[1765729260396,0.67,131.27,131.23,8.32015231]
[1765729261298,8.28814038,131.27,131.23,8.32015231]
[1765729261674,0.67,131.26,131.23,8.32015231]
[1765729262285,3.08474847,131.26,131.22,8.34]
[1765729262475,2.41474847,131.24,131.22,8.34]
[1765729262698,2.41474847,131.24,131.19,0.7]
[1765729262894,3.08474847,131.23,131.19,8.34]
[1765729263094,2.41474847,131.22,131.19,8.34]
[1765729263414,10.03669968,131.2,131.19,8.34]
[1765729263585,10.03669968,131.2,131.15,8.32468686]
[1765729263788,0.67,131.19,131.16,0.7]
[1765729264997,0.67,131.19,131.15,19.07943533]
[1765729265193,3.08474847,131.19,131.15,9.04]
[1765729265507,10.70777648,131.19,131.15,9.04]
[1765729265698,0.67,131.18,131.15,9.04]
[1765729266206,10.03777648,131.19,131.15,9.04]
[1765729266596,0.67,131.18,131.15,9.04]
[1765729267034,7.62302801,131.19,131.15,18.37952501]
[1765729267194,8.29302801,131.19,131.16,0.7]
[1765729267901,7.62302801,131.19,131.15,11.45474847]
[1765729268211,0.67,131.18,131.15,9.04]
[1765729268940,32.09955869,131.22,131.16,0.7]
[1765729269230,19.72246749,131.22,131.18,2.41474847]
[1765729269384,0.67,131.21,131.18,3.11474847]
[1765729270089,8.29137032,131.21,131.18,3.11474847]
[1765729270386,7.62137032,131.21,131.18,2.41474847]
[1765729270590,8.29137032,131.21,131.18,3.11474847]
[1765729271637,7.62101906,131.22,131.19,0.7]
[1765729271836,8.29101906,131.22,131.19,0.7]
[1765729272126,2.41474847,131.23,131.19,3.11474847]
[1765729272127,7.62032648,131.23,131.19,3.11474847]
[1765729272514,7.61979798,131.24,131.2,3.11474847]
[1765729272897,7.61979798,131.24,131.21,3.11474847]
[1765729273394,7.61979798,131.24,131.21,4.47508857]
[1765729274698,4.44508857,131.24,131.2,7.62174867]
[1765729274893,4.44508857,131.24,131.21,0.7]
[1765729275324,0.67,131.24,131.21,0.7]
[1765729275912,8.28976746,131.24,131.21,0.7]
[1765729276132,7.61976746,131.24,131.21,0.7]
[1765729276510,7.61976746,131.24,131.21,12.0964248]
[1765729276737,8.28922353,131.25,131.21,12.0964248]
[1765729276938,12.0643121,131.25,131.21,0.7]
[1765729277119,4.44508857,131.24,131.19,12.09754929]
[1765729277320,3.77508857,131.23,131.19,8.32246072]
[1765729277530,0.67,131.23,131.2,0.7]
[1765729277939,7.62036103,131.23,131.2,0.7]
[1765729278606,8.28971846,131.24,131.2,12.09679101]
[1765729278808,12.06355573,131.26,131.21,3.77508857]
[1765729279128,12.06355573,131.26,131.21,12.81508857]
[1765729279440,7.61846716,131.26,131.22,4.47508857]
[1765729279618,7.61846716,131.26,131.23,0.7]
[1765729280020,8.28846716,131.26,131.23,0.7]
[1765729280211,11.39314064,131.27,131.23,8.32012902]
[1765729280414,12.06314064,131.27,131.23,8.32012902]
[1765729281237,12.06314064,131.27,131.24,0.7]
[1765729281752,12.06314064,131.27,131.23,8.32012902]
[1765729282113,7.61805207,131.27,131.24,4.47508857]
[1765729282350,41.09947846,131.29,131.25,3.77508857]
[1765729282351,7.61680666,131.29,131.25,3.77508857]
[1765729282513,8.28680666,131.29,131.25,4.47508857]
[1765729282706,8.28680666,131.29,131.25,12.11508857]
[1765729283033,8.28680666,131.29,131.26,0.7]
[1765729283447,8.28680666,131.29,131.25,9.04]
[1765729283448,0.67,131.28,131.25,9.04]
[1765729284144,11.39189523,131.29,131.25,16.65902975]
[1765729284357,8.28680666,131.29,131.26,0.7]
[1765729284554,8.28680666,131.29,131.25,20.43411832]
[1765729284746,3.77508857,131.3,131.25,20.43411832]
[1765729284747,7.61631652,131.3,131.26,4.47508857]
[1765729285042,8.28631652,131.3,131.26,4.47508857]
[1765729285619,7.61631652,131.3,131.26,4.47508857]
[1765729285841,8.28631652,131.3,131.26,12.09342129]
[1765729286043,8.28631652,131.3,131.26,11.39342129]
[1765729286365,23.52165064,131.33,131.29,3.77508857]
[1765729286534,0.71,131.32,131.29,4.45508857]
[1765729286740,0.71,131.33,131.29,3.77508857]
[1765729286967,12.11508857,131.34,131.31,3.77508857]
[1765729286968,8.32437873,131.34,131.31,3.77508857]
[1765729287163,26.6489455,131.34,131.29,0.28432314]
[1765729287365,3.77508857,131.31,131.28,8.34]
[1765729287549,7.61614623,131.3,131.28,8.34]
[1765729287734,8.32614623,131.3,131.28,8.34]
[1765729290089,22.80968509,131.32,131.28,8.34]
[1765729290372,0.71,131.31,131.28,8.34]
[1765729291163,0.71,131.31,131.28,12.11194502]
[1765729291345,0.71,131.31,131.28,8.34]
[1765729291754,12.09635147,131.33,131.29,0.68]
[1765729292114,8.32440645,131.33,131.3,3.77194502]
[1765729292577,8.32440645,131.33,131.3,4.45194502]
[1765729292784,0.71,131.34,131.31,3.77194502]
[1765729293283,44.29121986,131.36,131.33,3.77194502]
[1765729293284,7.61324704,131.35,131.33,3.77194502]
[1765729293496,0.1,131.36,131.33,3.77194502]
[1765729293659,0.1,131.36,131.32,0.68]
[1765729293660,0.1,131.36,131.32,0.28432314]
[1765729293860,7.71287173,131.36,131.32,0.28432314]
[1765729294080,0.1,131.36,131.33,4.45194502]
[1765729294292,0.1,131.36,131.35,3.77194502]
[1765729294599,0.1,131.36,131.34,9.02]
[1765729294802,0.1,131.36,131.35,4.45194502]
[1765729295156,0.1,131.36,131.35,0.96432314]
[1765729295402,0.1,131.36,131.35,24.93140514]
[1765729295715,0.1,131.36,131.34,8.34]
[1765729296290,0.1,131.36,131.34,12.11194502]
[1765729296476,0.1,131.36,131.35,4.45194502]
[1765729296671,0.1,131.36,131.35,3.77194502]
[1765729296874,0.1,131.36,131.35,0.68]
[1765729297295,0.1,131.36,131.35,4.45194502]
[1765729297498,0.1,131.36,131.34,8.34]
[1765729297499,0.1,131.36,131.34,18.13367266]
[1765729297789,0.81,131.36,131.34,8.34]
[1765729298087,10.60367266,131.36,131.31,18.81367266]
[1765729298303,10.60367266,131.36,131.31,9.02]
[1765729298513,0.71,131.35,131.31,18.13367266]
[1765729298678,10.50367266,131.35,131.31,8.34]
[1765729299009,0.1,131.36,131.31,18.81367266]
[1765729299302,0.71,131.35,131.31,18.81367266]
[1765729299471,7.61354836,131.35,131.32,10.47367266]
[1765729299669,8.32354836,131.35,131.32,10.47367266]
[1765729300303,8.32354836,131.35,131.31,18.81367266]
[1765729300506,7.61354836,131.35,131.32,10.47367266]
[1765729300810,0.71,131.34,131.31,18.81367266]
[1765729300977,8.32354836,131.35,131.32,10.47367266]
[1765729302205,8.32354836,131.35,131.32,0.68]
[1765729302504,8.32354836,131.35,131.32,10.47367266]
[1765729303190,7.61354836,131.35,131.32,10.47367266]
[1765729303402,7.71284428,131.36,131.33,0.68]
[1765729303582,7.71284428,131.36,131.34,9.79367266]
[1765729304415,7.71284428,131.36,131.34,0.68]
[1765729304815,0.1,131.36,131.33,9.79367266]
[1765729305019,0.1,131.36,131.34,0.68]
[1765729305598,0.1,131.36,131.34,10.47367266]
[1765729306119,0.1,131.36,131.35,0.68]
[1765729306781,0.1,131.36,131.35,9.79367266]
[1765729307622,0.1,131.36,131.35,10.47367266]
[1765729307826,0.1,131.36,131.35,18.37124284]
[1765729308511,0.1,131.36,131.35,8.57757018]
[1765729308678,0.1,131.36,131.35,18.37124284]
[1765729309412,0.1,131.36,131.35,8.57757018]
[1765729309630,0.1,131.36,131.35,10.47367266]
[1765729309921,0.1,131.36,131.35,9.79367266]
[1765729310119,0.81,131.36,131.34,18.13367266]
[1765729310326,0.81,131.36,131.34,8.34]
[1765729310486,0.1,131.36,131.34,9.02]
[1765729310691,0.1,131.36,131.34,18.81367266]
[1765729311091,0.1,131.36,131.34,9.02]
[1765729311336,0.1,131.36,131.34,18.81367266]
[1765729311487,0.1,131.36,131.35,9.79367266]
[1765729311889,0.1,131.36,131.35,10.47367266]
[1765729312092,0.1,131.36,131.35,0.68]
[1765729312396,0.1,131.36,131.35,18.0869197]
[1765729314724,0.1,131.36,131.35,18.37124284]
[1765729315514,8.31940925,131.42,131.36,0.28432314]
[1765729315690,8.31940925,131.42,131.37,9.02]
[1765729315896,7.60940925,131.42,131.4,9.79367266]
[1765729316100,8.30940925,131.42,131.4,9.79367266]
[1765729316294,7.60940925,131.42,131.4,9.79367266]
[1765729316518,7.60940925,131.42,131.39,0.71]
[1765729316726,0.1,131.43,131.4,0.71]
[1765729316889,8.40867761,131.43,131.41,9.79367266]
[1765729317089,0.1,131.43,131.41,9.79367266]
[1765729317294,0.1,131.43,131.41,0.71]
[1765729317500,0.1,131.43,131.42,9.79367266]
[1765729317721,0.1,131.43,131.41,9.79367266]
[1765729318322,8.40861513,131.43,131.4,18.13367266]
[1765729319435,8.40861513,131.43,131.41,3.76410568]
[1765729319727,0.1,131.43,131.41,3.76410568]
[1765729319939,0.1,131.43,131.42,3.76410568]
[1765729320139,0.1,131.43,131.42,12.08329758]
[1765729320324,0.1,131.5,131.44,7.52821136]
[1765729320503,0.1,131.5,131.45,13.09842882]
[1765729320702,8.40463433,131.5,131.46,0.71]
[1765729320907,0.8,131.5,131.46,0.71]
[1765729321246,0.8,131.5,131.48,3.76410568]
[1765729321535,0.1,131.5,131.49,9.77508798]
[1765729321735,0.1,131.5,131.49,8.34]
[1765729322036,7.70456273,131.5,131.47,0.71]
[1765729322196,7.70456273,131.5,131.47,8.34]
[1765729322398,10.47508798,131.49,131.44,9.77508798]
[1765729322624,10.47508798,131.49,131.44,18.11508798]
[1765729322823,10.47508798,131.48,131.43,9.77508798]
[1765729323038,0.7,131.48,131.43,9.78275065]
[1765729323229,0.7,131.47,131.43,0.71]
[1765729323407,0.7,131.47,131.42,15.94908883]
[1765729323605,0.7,131.47,131.43,9.78275065]
[1765729323809,10.48275065,131.47,131.42,8.34]
[1765729324120,0.7,131.47,131.42,18.12275065]
[1765729324315,0.7,131.46,131.42,18.12275065]
[1765729324634,0.7,131.46,131.43,9.78275065]
[1765729325139,10.48275065,131.46,131.42,8.34]
[1765729325511,0.7,131.45,131.42,8.34]
[1765729325713,10.48275065,131.45,131.42,8.34]
[1765729326239,8.30814697,131.44,131.42,8.34]
[1765729326610,8.30763703,131.45,131.42,8.34]
[1765729327628,17.39038768,131.45,131.42,8.34]
[1765729327814,0.7,131.44,131.42,8.34]
[1765729328245,18.09038768,131.45,131.42,8.34]
[1765729328545,18.09038768,131.45,131.42,9.05]
[1765729328546,7.60763703,131.45,131.42,9.05]
[1765729328910,8.30763703,131.45,131.42,9.05]
[1765729329345,8.30763703,131.45,131.42,8.34]
[1765729329527,18.09038768,131.45,131.42,8.34]
[1765729329935,7.60763703,131.45,131.42,9.05]
[1765729330238,8.30763703,131.45,131.42,9.05]
[1765729330443,0.7,131.46,131.42,16.65894192]
[1765729330638,17.38924265,131.47,131.43,0.71]
[1765729330848,7.606492,131.47,131.43,10.49275065]
[1765729331147,8.306492,131.47,131.43,10.49275065]
[1765729331520,17.38924265,131.47,131.43,0.71]
[1765729331720,18.08924265,131.47,131.42,25.73169257]
[1765729331918,18.08924265,131.47,131.44,0.71]
[1765729332123,8.306492,131.47,131.44,0.71]
[1765729332314,18.08924265,131.47,131.44,0.71]
[1765729332630,7.70460247,131.5,131.44,8.31789512]
[1765729332820,8.40460247,131.5,131.46,9.78275065]
[1765729333022,0.8,131.5,131.46,9.78275065]
[1765729333211,0.8,131.5,131.47,0.71]
[1765729334723,0.8,131.5,131.47,8.31615639]
[1765729334919,0.8,131.5,131.47,18.09890704]
[1765729334920,0.1,131.5,131.47,18.09890704]
[1765729335120,0.1,131.5,131.48,0.71]
[1765729335552,0.1,131.5,131.48,6.72532713]
[1765729336522,0.1,131.5,131.47,6.01532713]
[1765729336731,0.1,131.5,131.47,6.72532713]
[1765729337823,0.1,131.5,131.45,27.35778987]
[1765729337824,0.1,131.5,131.48,6.01532713]
[1765729338142,0.1,131.5,131.47,6.72532713]
[1765729338326,0.1,131.5,131.47,8.31607333]
[1765729338524,0.1,131.5,131.48,6.01532713]
[1765729339047,0.8,131.5,131.47,0.71]
[1765729339250,0.8,131.5,131.47,6.72532713]
[1765729339948,0.8,131.5,131.46,13.62206309]
[1765729340121,0.8,131.5,131.46,8.31673596]
[1765729340327,0.8,131.5,131.46,14.33206309]
[1765729340524,0.8,131.5,131.46,8.31673596]
[1765729340724,8.40478789,131.5,131.46,14.33206309]
[1765729340925,8.40478789,131.5,131.47,0.71]
[1765729341349,8.40478789,131.5,131.47,6.72532713]
[1765729341650,0.1,131.5,131.48,6.01532713]
[1765729341851,0.1,131.5,131.48,6.72532713]
[1765729342054,0.1,131.5,131.49,15.06532713]
[1765729342774,0.1,131.5,131.49,22.6704682]
[1765729343079,0.1,131.5,131.49,22.95479134]
[1765729343446,0.1,131.5,131.49,44.81182746]
[1765729344563,0.1,131.5,131.49,36.00188254]
[1765729344777,0.1,131.5,131.49,44.81182746]
[1765729345079,0.7,131.59,131.52,13.0470912]
[1765729345244,0.7,131.59,131.53,9.05]
[1765729345442,0.7,131.59,131.55,6.01532713]
[1765729345870,0.7,131.59,131.55,6.72532713]
[1765729346185,21.95414932,131.6,131.54,0.28432314]
[1765729346186,0.68,131.63,131.58,6.01532713]
[1765729346346,8.27705234,131.63,131.58,0.69]
[1765729346549,8.27705234,131.63,131.59,6.01532713]
[1765729346754,0.68,131.62,131.58,7.59937922]
[1765729346969,0.68,131.62,131.59,7.59930972]
[1765729347168,0.68,131.62,131.59,7.59928904]
[1765729347359,8.37650341,131.64,131.6,0.69]
[1765729347567,8.37650341,131.64,131.59,9.01]
[1765729347753,0.68,131.63,131.59,9.01]
[1765729347947,13.71183054,131.64,131.59,9.01]
[1765729347948,0.1,131.64,131.6,6.70532713]
[1765729348146,0.78,131.64,131.6,0.69]
[1765729348566,0.78,131.64,131.59,21.93460375]
[1765729348567,14.3919269,131.64,131.59,8.32]
[1765729348771,0.1,131.64,131.6,0.97432314]
[1765729348961,6.01532713,131.62,131.57,0.69]
[1765729349279,6.01532713,131.62,131.58,8.32]
[1765729349462,0.68,131.61,131.58,8.32]
[1765729349643,26.6877248,131.64,131.58,15.91971272]
[1765729349847,26.6877248,131.64,131.58,16.60971272]
[1765729349848,0.68,131.63,131.58,16.60971272]
[1765729350049,6.01532713,131.62,131.58,8.32]
[1765729350249,0.68,131.63,131.58,8.32]
[1765729350473,6.69532713,131.62,131.58,8.32]
[1765729350980,0.68,131.61,131.58,8.32]
[1765729351148,0.78,131.64,131.59,0.69]
[1765729351353,0.78,131.64,131.59,6.70532713]
[1765729351778,0.78,131.64,131.6,0.69]
[1765729352149,0.1,131.64,131.6,0.69]
[1765729352355,8.37659078,131.64,131.59,0.28432314]
[1765729352556,8.37659078,131.64,131.58,16.60983494]
[1765729352557,6.01532713,131.63,131.58,16.60983494]
[1765729352783,8.27711975,131.63,131.58,22.62516207]
[1765729352964,0.68,131.62,131.58,9.01]
[1765729353361,7.59711975,131.63,131.59,0.69]
[1765729353582,8.27711975,131.63,131.59,0.69]
[1765729353774,8.27707849,131.63,131.59,0.69]
[1765729354387,8.37662147,131.64,131.59,6.70532713]
[1765729354570,14.3919486,131.64,131.59,0.69]
[1765729354773,8.37662147,131.64,131.6,0.69]
[1765729355073,14.3919486,131.64,131.6,0.69]
[1765729355263,0.1,131.64,131.6,6.98965027]
[1765729355464,0.1,131.64,131.6,14.58833272]
[1765729355672,0.1,131.64,131.61,9.01]
[1765729356073,0.1,131.64,131.62,0.69]
[1765729356472,0.68,131.63,131.61,8.32]
[1765729356684,8.37674283,131.64,131.61,8.32]
[1765729356988,14.39206996,131.64,131.61,8.32]
[1765729357192,0.68,131.63,131.61,8.32]
[1765729357404,6.69532713,131.63,131.57,20.64743021]
[1765729357570,6.01532713,131.62,131.56,9.01]
[1765729357774,6.01532713,131.61,131.56,15.02532713]
[1765729357971,6.68739564,131.61,131.56,9.01]
[1765729358177,0.68,131.6,131.56,8.32]
[1765729358576,0.68,131.6,131.56,16.61098855]
[1765729358967,8.27924204,131.6,131.56,9.01]
[1765729359171,8.27924204,131.6,131.56,8.32]
[1765729359378,0.68,131.59,131.56,8.32]
[1765729359604,6.00739564,131.58,131.52,0.69]
[1765729359763,0.68,131.59,131.5,19.0108409]
[1765729359764,0.68,131.59,131.51,7.60377078]
[1765729359968,6.00739564,131.55,131.5,16.61440082]
[1765729360171,0.68,131.58,131.5,16.61440082]
[1765729360363,6.00739564,131.55,131.5,16.61440082]
[1765729360568,6.00739564,131.54,131.5,8.32]
[1765729360873,26.60585327,131.55,131.5,8.32]
[1765729361073,6.00739564,131.53,131.48,7.60571561]
[1765729361482,0.68,131.52,131.48,8.29571561]
[1765729361792,6.68739564,131.54,131.49,7.60509347]
[1765729362098,6.68739564,131.54,131.48,8.29553502]
[1765729362099,6.00739564,131.53,131.48,8.29553502]
[1765729362475,0.68,131.53,131.49,8.29512431]
[1765729362996,6.00739564,131.51,131.47,8.32]
[1765729363178,6.00739564,131.5,131.44,6.69739564]
[1765729363368,6.68739564,131.5,131.44,9.01]
[1765729363565,6.68739564,131.5,131.44,27.37448684]
[1765729363777,6.68739564,131.5,131.45,0.69]
[1765729364172,6.00739564,131.49,131.45,0.69]
[1765729364401,6.68739564,131.49,131.45,0.69]
[1765729364599,0.68,131.49,131.45,0.69]
[1765729364819,6.68739564,131.49,131.45,0.69]
[1765729366000,6.68739564,131.48,131.44,8.32]
[1765729366201,6.68739564,131.48,131.43,7.60846098]
[1765729366202,6.68739564,131.47,131.43,7.60846098]
[1765729366385,6.68739564,131.47,131.43,8.29846098]
[1765729366703,0.68,131.46,131.43,7.60838096]
[1765729366906,0.68,131.46,131.41,16.61924793]
[1765729367078,6.00739564,131.45,131.41,16.61924793]
[1765729367480,6.68739564,131.45,131.41,15.92924793]
[1765729367700,6.68739564,131.45,131.41,16.61924793]
[1765729367898,0.68,131.44,131.41,15.92924793]